[Event "*** Titled Tuesday 3|2 Blitz"]
[Site "Chess.com"]
[Date "2017.05.02"]
[Round "4"]
[White "Yaacovn"]
[Black "Larax"]
[Result "0-1"]
[WhiteElo "2526"]
[BlackElo "1985"]
[TimeControl "180+2"]
[EndTime "13:48:59 PDT"]
[Termination "Larax won on time"]

1. d4 {[%clk 0:02:53.1]} 1... Nf6 {[%clk 0:02:56.9]} 2. e3 {[%clk 0:02:47.2]}
2... g6 {[%clk 0:02:55.1]} 3. Nf3 {[%clk 0:02:47.3]} 3... Bg7 {[%clk 0:02:52.2]}
4. Be2 {[%clk 0:02:47.4]} 4... O-O {[%clk 0:02:49.3]} 5. O-O {[%clk 0:02:47.7]}
5... c5 {[%clk 0:02:46]} 6. b3 {[%clk 0:02:48.2]} 6... d6 {[%clk 0:02:39.6]} 7.
Bb2 {[%clk 0:02:39.5]} 7... b6 {[%clk 0:02:36.3]} 8. c4 {[%clk 0:02:37.7]} 8...
Bb7 {[%clk 0:02:33.4]} 9. Nc3 {[%clk 0:02:37.5]} 9... Nbd7 {[%clk 0:02:30.2]}
10. Qc2 {[%clk 0:02:33.8]} 10... Rc8 {[%clk 0:02:06.5]} 11. d5 {[%clk
0:02:27.5]} 11... a6 {[%clk 0:01:40.5]} 12. a4 {[%clk 0:02:22.7]} 12... e5
{[%clk 0:01:38.3]} 13. dxe6 {[%clk 0:02:21.3]} 13... fxe6 {[%clk 0:01:39]} 14.
Rad1 {[%clk 0:02:21.7]} 14... Qe7 {[%clk 0:01:35.4]} 15. Ng5 {[%clk 0:02:17.5]}
15... d5 {[%clk 0:01:24.2]} 16. Bf3 {[%clk 0:01:58.7]} 16... Ne5 {[%clk
0:01:17.9]} 17. Be2 {[%clk 0:01:58.8]} 17... dxc4 {[%clk 0:01:09]} 18. bxc4
{[%clk 0:01:56]} 18... Rfd8 {[%clk 0:01:04.2]} 19. h3 {[%clk 0:01:36.8]} 19...
h6 {[%clk 0:00:57.6]} 20. Nge4 {[%clk 0:01:36.5]} 20... Nxe4 {[%clk 0:00:58.8]}
21. Nxe4 {[%clk 0:01:36.7]} 21... Kh7 {[%clk 0:00:43]} 22. f4 {[%clk 0:01:32]}
22... Nc6 {[%clk 0:00:30.8]} 23. Bxg7 {[%clk 0:01:31.9]} 23... Kxg7 {[%clk
0:00:29.1]} 24. Qb2+ {[%clk 0:01:27.1]} 24... Kf7 {[%clk 0:00:28.9]} 25. Qxb6
{[%clk 0:01:26.7]} 25... Nb4 {[%clk 0:00:22.1]} 26. Nd6+ {[%clk 0:01:26.2]}
26... Rxd6 {[%clk 0:00:16.1]} 27. Qxd6 {[%clk 0:01:25.5]} 27... Nc2 {[%clk
0:00:13.8]} 28. Qxe7+ {[%clk 0:01:23.5]} 28... Kxe7 {[%clk 0:00:15.4]} 29. Kf2
{[%clk 0:01:24.6]} 29... e5 {[%clk 0:00:13.8]} 30. Rd2 {[%clk 0:01:24]} 30...
Be4 {[%clk 0:00:13.5]} 31. fxe5 {[%clk 0:01:12.2]} 31... Rf8+ {[%clk 0:00:10.8]}
0-1

[Event "*** Titled Tuesday 3|2 Blitz"]
[Site "Chess.com"]
[Date "2017.05.02"]
[Round "4"]
[White "Drags95"]
[Black "PaulfromSPb"]
[Result "0-1"]
[WhiteElo "2523"]
[BlackElo "2574"]
[TimeControl "180+2"]
[EndTime "13:49:06 PDT"]
[Termination "PaulfromSPb won by resignation"]

1. e4 {[%clk 0:03:02]} 1... c5 {[%clk 0:03:00.2]} 2. Nf3 {[%clk 0:03:02.3]} 2...
a6 {[%clk 0:03:01]} 3. c4 {[%clk 0:03:01.3]} 3... e6 {[%clk 0:03:00.4]} 4. d4
{[%clk 0:03:02.2]} 4... cxd4 {[%clk 0:03:00.7]} 5. Nxd4 {[%clk 0:03:04.1]} 5...
Nf6 {[%clk 0:03:01.5]} 6. Nc3 {[%clk 0:03:03.1]} 6... Bb4 {[%clk 0:02:57.4]} 7.
Qd3 {[%clk 0:02:41.2]} 7... Nc6 {[%clk 0:02:57.6]} 8. Nxc6 {[%clk 0:02:41.5]}
8... dxc6 {[%clk 0:02:55.6]} 9. Qxd8+ {[%clk 0:02:43.4]} 9... Kxd8 {[%clk
0:02:56.5]} 10. e5 {[%clk 0:02:45.3]} 10... Nd7 {[%clk 0:02:56.1]} 11. Bf4
{[%clk 0:02:45.4]} 11... Kc7 {[%clk 0:02:45]} 12. O-O-O {[%clk 0:02:45.9]} 12...
Bxc3 {[%clk 0:02:05.9]} 13. bxc3 {[%clk 0:02:47.8]} 13... Nc5 {[%clk 0:02:04.9]}
14. f3 {[%clk 0:02:42.4]} 14... b6 {[%clk 0:02:03.2]} 15. h4 {[%clk 0:02:37.1]}
15... Bb7 {[%clk 0:02:02.6]} 16. h5 {[%clk 0:02:38]} 16... Rad8 {[%clk
0:01:50.6]} 17. Be2 {[%clk 0:02:38.9]} 17... Rxd1+ {[%clk 0:01:50.2]} 18. Rxd1
{[%clk 0:02:40.8]} 18... Rd8 {[%clk 0:01:49.7]} 19. Rxd8 {[%clk 0:02:35.8]}
19... Kxd8 {[%clk 0:01:50.5]} 20. h6 {[%clk 0:02:36]} 20... g6 {[%clk
0:01:41.8]} 21. Be3 {[%clk 0:02:24.1]} 21... Nd7 {[%clk 0:01:41.6]} 22. f4
{[%clk 0:02:14.4]} 22... c5 {[%clk 0:01:42.4]} 23. g4 {[%clk 0:02:13]} 23... Be4
{[%clk 0:01:42.1]} 24. Kd2 {[%clk 0:02:10.9]} 24... Kc7 {[%clk 0:01:36.9]} 25.
a3 {[%clk 0:02:09.7]} 25... Nb8 {[%clk 0:01:30.7]} 26. Bf2 {[%clk 0:02:07]}
26... Nc6 {[%clk 0:01:27.7]} 27. Ke3 {[%clk 0:02:02.2]} 27... Bb1 {[%clk
0:01:26.1]} 28. Bh4 {[%clk 0:01:44.8]} 28... Na5 {[%clk 0:01:20.5]} 29. Bf6
{[%clk 0:01:37.2]} 29... Kd7 {[%clk 0:01:19.5]} 30. Bd3 {[%clk 0:01:00.2]} 30...
Bxd3 {[%clk 0:01:12]} 31. Kxd3 {[%clk 0:01:02.1]} 31... Kc6 {[%clk 0:01:13]} 32.
a4 {[%clk 0:01:00.1]} 32... Nb3 {[%clk 0:01:08.9]} 33. Kc2 {[%clk 0:00:56.8]}
33... Na5 {[%clk 0:01:09]} 34. Kd3 {[%clk 0:00:58.2]} 34... Nb3 {[%clk
0:01:05.1]} 35. Kc2 {[%clk 0:00:59.2]} 35... Na5 {[%clk 0:01:05.6]} 36. Kd3
{[%clk 0:01:00.8]} 36... b5 {[%clk 0:01:01.5]} 37. cxb5+ {[%clk 0:00:47.2]}
37... axb5 {[%clk 0:01:02.4]} 38. Bd8 {[%clk 0:00:42.6]} 38... Nb7 {[%clk
0:00:59.7]} 39. axb5+ {[%clk 0:00:40.5]} 39... Kxb5 {[%clk 0:00:59.3]} 40. c4+
{[%clk 0:00:25.7]} 40... Kb4 {[%clk 0:00:46.5]} 41. Bb6 {[%clk 0:00:21.6]} 41...
Na5 {[%clk 0:00:41]} 42. Bxa5+ {[%clk 0:00:11.8]} 42... Kxa5 {[%clk 0:00:41.7]}
43. f5 {[%clk 0:00:13.7]} 43... Kb4 {[%clk 0:00:38.1]} 44. Ke4 {[%clk
0:00:10.3]} 44... Kxc4 {[%clk 0:00:38.6]} 45. Kf4 {[%clk 0:00:12.2]} 45... Kd4
{[%clk 0:00:38]} 0-1

[Event "*** Titled Tuesday 3|2 Blitz"]
[Site "Chess.com"]
[Date "2017.05.02"]
[Round "4"]
[White "Mbneu"]
[Black "AdrianaNikolova"]
[Result "0-1"]
[WhiteElo "2137"]
[BlackElo "2312"]
[TimeControl "180+2"]
[EndTime "13:49:13 PDT"]
[Termination "AdrianaNikolova won by resignation"]

1. d4 {[%clk 0:03:02]} 1... Nf6 {[%clk 0:03:00]} 2. c4 {[%clk 0:03:02.4]} 2...
e6 {[%clk 0:03:00.9]} 3. Nc3 {[%clk 0:03:02.2]} 3... Bb4 {[%clk 0:03:01.9]} 4.
Bg5 {[%clk 0:03:02.2]} 4... h6 {[%clk 0:02:58.3]} 5. Bh4 {[%clk 0:03:02.2]} 5...
c5 {[%clk 0:02:59.8]} 6. dxc5 {[%clk 0:03:01.9]} 6... Na6 {[%clk 0:02:59.3]} 7.
Rc1 {[%clk 0:03:01.4]} 7... Nxc5 {[%clk 0:03:00.2]} 8. Nf3 {[%clk 0:02:58.5]}
8... Nce4 {[%clk 0:03:00.4]} 9. e3 {[%clk 0:02:45]} 9... Qa5 {[%clk 0:02:49.7]}
10. Bxf6 {[%clk 0:02:40.6]} 10... Nxf6 {[%clk 0:02:44.6]} 11. Bd3 {[%clk
0:02:25.8]} 11... d5 {[%clk 0:02:42.7]} 12. O-O {[%clk 0:02:22.1]} 12... dxc4
{[%clk 0:02:40.3]} 13. Bxc4 {[%clk 0:02:22.1]} 13... O-O {[%clk 0:02:40.7]} 14.
a3 {[%clk 0:02:20.4]} 14... Be7 {[%clk 0:02:39.3]} 15. Qb3 {[%clk 0:02:13.6]}
15... b6 {[%clk 0:02:36.9]} 16. Nd4 {[%clk 0:02:03.9]} 16... Qg5 {[%clk
0:02:26.8]} 17. f4 {[%clk 0:02:02.8]} 17... Qg6 {[%clk 0:02:26.8]} 18. Rf3
{[%clk 0:01:55.6]} 18... Nh5 {[%clk 0:02:16.8]} 19. Nc6 {[%clk 0:01:36]} 19...
Bf6 {[%clk 0:02:11.5]} 20. Ne2 {[%clk 0:01:23.4]} 20... Bb7 {[%clk 0:01:46.1]}
21. Bd3 {[%clk 0:01:18.4]} 21... Qg4 {[%clk 0:01:46.9]} 22. h3 {[%clk
0:01:05.5]} 22... Qh4 {[%clk 0:01:35.8]} 23. Kh2 {[%clk 0:01:05.7]} 23... Bd8
{[%clk 0:01:22.6]} 24. g3 {[%clk 0:00:55.1]} 24... Qf6 {[%clk 0:01:22]} 25. g4
{[%clk 0:00:52.8]} 25... Rc8 {[%clk 0:01:07.1]} 26. Ned4 {[%clk 0:00:48.8]}
26... Bxc6 {[%clk 0:00:22.3]} 27. Rxc6 {[%clk 0:00:44.6]} 27... Rxc6 {[%clk
0:00:21.9]} 28. Nxc6 {[%clk 0:00:44.8]} 28... e5 {[%clk 0:00:23.2]} 29. Nxe5
{[%clk 0:00:42.2]} 29... Bc7 {[%clk 0:00:21.2]} 30. Nd7 {[%clk 0:00:38.8]} 30...
Qc6 {[%clk 0:00:20]} 31. Nxf8 {[%clk 0:00:14.7]} 31... Qxf3 {[%clk 0:00:20.1]}
32. Bh7+ {[%clk 0:00:07.4]} 32... Kxf8 {[%clk 0:00:18.7]} 33. gxh5 {[%clk
0:00:06.8]} 33... Qf2+ {[%clk 0:00:17.8]} 34. Kh1 {[%clk 0:00:07.8]} 34... Qf3+
{[%clk 0:00:16.9]} 35. Kh2 {[%clk 0:00:08.8]} 35... Bxf4+ {[%clk 0:00:12]} 36.
Kg1 {[%clk 0:00:04.9]} 36... Bxe3+ {[%clk 0:00:13.1]} 0-1

[Event "*** Titled Tuesday 3|2 Blitz"]
[Site "Chess.com"]
[Date "2017.05.02"]
[Round "4"]
[White "saraswathii"]
[Black "FearlessKing64"]
[Result "1-0"]
[WhiteElo "2222"]
[BlackElo "2133"]
[TimeControl "180+2"]
[EndTime "13:49:34 PDT"]
[Termination "saraswathii won by resignation"]

1. e4 {[%clk 0:03:02]} 1... c5 {[%clk 0:03:00.7]} 2. Nf3 {[%clk 0:02:58.7]} 2...
d6 {[%clk 0:03:01.7]} 3. d3 {[%clk 0:02:52.2]} 3... g6 {[%clk 0:02:59.1]} 4. g3
{[%clk 0:02:46.8]} 4... Bg7 {[%clk 0:03:00.3]} 5. Bg2 {[%clk 0:02:45.1]} 5... e6
{[%clk 0:03:01.4]} 6. O-O {[%clk 0:02:43.6]} 6... Nc6 {[%clk 0:03:02.7]} 7. c3
{[%clk 0:02:42]} 7... Nge7 {[%clk 0:03:03.5]} 8. Qe2 {[%clk 0:02:38.7]} 8... O-O
{[%clk 0:03:02.9]} 9. Be3 {[%clk 0:02:32.9]} 9... Rb8 {[%clk 0:02:55.4]} 10. d4
{[%clk 0:02:30.3]} 10... cxd4 {[%clk 0:02:36.8]} 11. cxd4 {[%clk 0:02:29.4]}
11... d5 {[%clk 0:02:38.7]} 12. e5 {[%clk 0:02:24.8]} 12... Nf5 {[%clk
0:02:39.1]} 13. Nc3 {[%clk 0:02:22.3]} 13... Nxe3 {[%clk 0:02:34.5]} 14. Qxe3
{[%clk 0:02:21.4]} 14... Bd7 {[%clk 0:02:29.1]} 15. h4 {[%clk 0:02:21.4]} 15...
h5 {[%clk 0:02:20.1]} 16. Rac1 {[%clk 0:02:19]} 16... Rc8 {[%clk 0:02:10.7]} 17.
b3 {[%clk 0:02:18.6]} 17... Qe7 {[%clk 0:02:00.2]} 18. Na4 {[%clk 0:02:12.3]}
18... b6 {[%clk 0:02:00.9]} 19. Nc3 {[%clk 0:02:12.8]} 19... Nb4 {[%clk
0:00:57.3]} 20. Qd2 {[%clk 0:02:07.4]} 20... Rc7 {[%clk 0:00:49.4]} 21. a3
{[%clk 0:02:06.5]} 21... Na6 {[%clk 0:00:48.5]} 22. b4 {[%clk 0:01:57.6]} 22...
Rfc8 {[%clk 0:00:49.2]} 23. Qd3 {[%clk 0:01:54.2]} 23... Nb8 {[%clk 0:00:50.1]}
24. Ng5 {[%clk 0:01:45]} 24... Rc4 {[%clk 0:00:49]} 25. Rfe1 {[%clk 0:01:29.8]}
25... Bh6 {[%clk 0:00:48]} 26. f4 {[%clk 0:01:25.3]} 26... a5 {[%clk 0:00:47.5]}
27. Bxd5 {[%clk 0:00:54.4]} 27... Rxc3 {[%clk 0:00:31.2]} 28. Rxc3 {[%clk
0:00:54.3]} 28... exd5 {[%clk 0:00:28.3]} 29. Rxc8+ {[%clk 0:00:44.9]} 29...
Bxc8 {[%clk 0:00:30.2]} 30. bxa5 {[%clk 0:00:41.8]} 30... bxa5 {[%clk
0:00:28.5]} 31. Qc3 {[%clk 0:00:42.9]} 31... Bf5 {[%clk 0:00:22.5]} 32. Qxa5
{[%clk 0:00:42.7]} 32... Nd7 {[%clk 0:00:20.4]} 33. Rc1 {[%clk 0:00:39.4]} 33...
Bxg5 {[%clk 0:00:19.8]} 34. hxg5 {[%clk 0:00:39.1]} 34... Be4 {[%clk 0:00:21.3]}
35. Qb4 {[%clk 0:00:38.5]} 35... Qe6 {[%clk 0:00:22]} 36. Rc8+ {[%clk
0:00:38.8]} 36... Kg7 {[%clk 0:00:22.5]} 37. Kh2 {[%clk 0:00:36.8]} 37... h4
{[%clk 0:00:22.3]} 38. Rc3 {[%clk 0:00:20.8]} 38... Qg4 {[%clk 0:00:21.7]} 39.
Qb2 {[%clk 0:00:20.6]} 39... Nf8 {[%clk 0:00:19.6]} 40. Qf2 {[%clk 0:00:20.9]}
40... Ne6 {[%clk 0:00:19.9]} 41. gxh4 {[%clk 0:00:20.6]} 41... Nxf4 {[%clk
0:00:20.8]} 42. a4 {[%clk 0:00:20.5]} 42... Nd3 {[%clk 0:00:18.1]} 43. Qf6+
{[%clk 0:00:20.6]} 43... Kf8 {[%clk 0:00:14.5]} 44. Qh8+ {[%clk 0:00:19.6]}
44... Ke7 {[%clk 0:00:15.3]} 45. Rc7+ {[%clk 0:00:21.2]} 1-0

[Event "*** Titled Tuesday 3|2 Blitz"]
[Site "Chess.com"]
[Date "2017.05.02"]
[Round "4"]
[White "Schemato"]
[Black "stefanodinn"]
[Result "0-1"]
[WhiteElo "2303"]
[BlackElo "2226"]
[TimeControl "180+2"]
[EndTime "13:49:45 PDT"]
[Termination "stefanodinn won by checkmate"]

1. c4 {[%clk 0:03:02]} 1... c6 {[%clk 0:02:57.5]} 2. Nf3 {[%clk 0:03:02.4]} 2...
d5 {[%clk 0:02:58]} 3. e3 {[%clk 0:03:03.6]} 3... Nf6 {[%clk 0:02:58.2]} 4. Nc3
{[%clk 0:03:04.1]} 4... a6 {[%clk 0:02:35.2]} 5. Qc2 {[%clk 0:03:03.8]} 5... g6
{[%clk 0:02:33.5]} 6. d4 {[%clk 0:03:00.8]} 6... Bf5 {[%clk 0:02:32]} 7. Bd3
{[%clk 0:02:59.7]} 7... Bxd3 {[%clk 0:02:32.2]} 8. Qxd3 {[%clk 0:03:00.4]} 8...
Bg7 {[%clk 0:02:32.6]} 9. b3 {[%clk 0:02:56.3]} 9... O-O {[%clk 0:02:32.1]} 10.
Bb2 {[%clk 0:02:56.6]} 10... Nbd7 {[%clk 0:02:31.2]} 11. O-O {[%clk 0:02:55.8]}
11... b5 {[%clk 0:02:18.6]} 12. Ba3 {[%clk 0:02:18]} 12... Rb8 {[%clk
0:02:12.5]} 13. Ne2 {[%clk 0:02:07.6]} 13... Re8 {[%clk 0:01:45.5]} 14. Rac1
{[%clk 0:02:04.8]} 14... Qa5 {[%clk 0:01:39.6]} 15. cxd5 {[%clk 0:01:47.2]}
15... Qxa3 {[%clk 0:01:27.1]} 16. dxc6 {[%clk 0:01:47.7]} 16... Nb6 {[%clk
0:01:26.1]} 17. e4 {[%clk 0:01:44]} 17... e6 {[%clk 0:01:21]} 18. c7 {[%clk
0:01:39.1]} 18... Rbc8 {[%clk 0:01:18.1]} 19. Rc6 {[%clk 0:01:40.5]} 19... Na8
{[%clk 0:00:59.7]} 20. Rfc1 {[%clk 0:01:39.5]} 20... Re7 {[%clk 0:00:57.3]} 21.
d5 {[%clk 0:00:53.7]} 21... exd5 {[%clk 0:00:55.8]} 22. exd5 {[%clk 0:00:54.7]}
22... Rexc7 {[%clk 0:00:18.2]} 23. Rxc7 {[%clk 0:00:53.4]} 23... Rxc7 {[%clk
0:00:18.7]} 24. Rxc7 {[%clk 0:00:54.3]} 24... Nxc7 {[%clk 0:00:19.9]} 25. d6
{[%clk 0:00:55.8]} 25... Ncd5 {[%clk 0:00:19.8]} 26. d7 {[%clk 0:00:51.1]} 26...
Qd6 {[%clk 0:00:20.1]} 27. Nc3 {[%clk 0:00:46.4]} 27... Qxd7 {[%clk 0:00:18.3]}
28. Ne5 {[%clk 0:00:47]} 28... Qe6 {[%clk 0:00:18.3]} 29. f4 {[%clk 0:00:45.7]}
29... Nxc3 {[%clk 0:00:15.3]} 30. Qxc3 {[%clk 0:00:46.5]} 30... Ne8 {[%clk
0:00:14.6]} 31. Qc5 {[%clk 0:00:43.2]} 31... Bxe5 {[%clk 0:00:13.7]} 32. fxe5
{[%clk 0:00:45.1]} 32... Kg7 {[%clk 0:00:12.8]} 33. h3 {[%clk 0:00:46.1]} 33...
h5 {[%clk 0:00:13.4]} 34. Kh1 {[%clk 0:00:45.9]} 34... Kh7 {[%clk 0:00:13.4]}
35. a4 {[%clk 0:00:45.1]} 35... bxa4 {[%clk 0:00:13.1]} 36. bxa4 {[%clk
0:00:46.3]} 36... Ng7 {[%clk 0:00:13.8]} 37. a5 {[%clk 0:00:45.6]} 37... Nf5
{[%clk 0:00:14.6]} 38. Kh2 {[%clk 0:00:44.7]} 38... h4 {[%clk 0:00:14]} 39. Kg1
{[%clk 0:00:44.8]} 39... Ne7 {[%clk 0:00:11.8]} 40. Kf2 {[%clk 0:00:41.4]} 40...
Nc6 {[%clk 0:00:11]} 41. Qb6 {[%clk 0:00:38]} 41... Nxe5 {[%clk 0:00:11.1]} 42.
Qb7 {[%clk 0:00:34.5]} 42... Nc4 {[%clk 0:00:07.4]} 43. Qb4 {[%clk 0:00:29.6]}
43... Qe3+ {[%clk 0:00:05.4]} 44. Kf1 {[%clk 0:00:27.6]} 44... Nd2+ {[%clk
0:00:06]} 45. Qxd2 {[%clk 0:00:28]} 45... Qxd2 {[%clk 0:00:06.2]} 46. Kg1 {[%clk
0:00:29.4]} 46... Qxa5 {[%clk 0:00:06.8]} 47. Kh2 {[%clk 0:00:30.9]} 47... Qd2
{[%clk 0:00:07.3]} 48. Kg1 {[%clk 0:00:31.4]} 48... Qe2 {[%clk 0:00:08]} 49. g4
{[%clk 0:00:32.3]} 49... hxg3 {[%clk 0:00:07.9]} 50. h4 {[%clk 0:00:33]} 50...
Qf2+ {[%clk 0:00:08.6]} 51. Kh1 {[%clk 0:00:34.1]} 51... Qh2# {[%clk 0:00:09.4]}
0-1

[Event "*** Titled Tuesday 3|2 Blitz"]
[Site "Chess.com"]
[Date "2017.05.02"]
[Round "4"]
[White "JusticeBot"]
[Black "hermionegrangermagic"]
[Result "0-1"]
[WhiteElo "2481"]
[BlackElo "2278"]
[TimeControl "180+2"]
[EndTime "13:49:58 PDT"]
[Termination "hermionegrangermagic won by checkmate"]

1. e4 {[%clk 0:03:02]} 1... c6 {[%clk 0:02:57.1]} 2. d4 {[%clk 0:03:03.1]} 2...
d5 {[%clk 0:02:56.7]} 3. Nc3 {[%clk 0:03:05]} 3... dxe4 {[%clk 0:02:57.1]} 4.
Nxe4 {[%clk 0:03:07]} 4... Nf6 {[%clk 0:02:58]} 5. Nxf6+ {[%clk 0:03:08.4]} 5...
exf6 {[%clk 0:02:59.3]} 6. c3 {[%clk 0:03:10]} 6... Bd6 {[%clk 0:03:00]} 7. Bd3
{[%clk 0:03:11.6]} 7... O-O {[%clk 0:02:59.5]} 8. Qc2 {[%clk 0:03:13.6]} 8... g6
{[%clk 0:02:58.8]} 9. Ne2 {[%clk 0:03:15.6]} 9... Qc7 {[%clk 0:02:57.9]} 10. h4
{[%clk 0:03:16.4]} 10... f5 {[%clk 0:02:50.4]} 11. h5 {[%clk 0:03:10.3]} 11...
c5 {[%clk 0:02:45.7]} 12. dxc5 {[%clk 0:02:57.8]} 12... Bxc5 {[%clk 0:02:43.4]}
13. hxg6 {[%clk 0:02:55.8]} 13... fxg6 {[%clk 0:02:43.3]} 14. Bf4 {[%clk
0:02:48]} 14... Qe7 {[%clk 0:02:34.7]} 15. O-O-O {[%clk 0:02:44.3]} 15... Nc6
{[%clk 0:02:30.6]} 16. g4 {[%clk 0:02:11.9]} 16... fxg4 {[%clk 0:02:06.3]} 17.
Bh6 {[%clk 0:02:13.2]} 17... Rxf2 {[%clk 0:01:11.2]} 18. Rdf1 {[%clk 0:01:58.7]}
18... Be3+ {[%clk 0:01:06.6]} 19. Bxe3 {[%clk 0:01:59]} 19... Qxe3+ {[%clk
0:01:07.3]} 20. Kb1 {[%clk 0:02:00.9]} 20... Qxd3 {[%clk 0:00:18.7]} 21. Rxf2
{[%clk 0:01:51.2]} 21... Bf5 {[%clk 0:00:16.4]} 22. Qxd3 {[%clk 0:01:43.3]}
22... Bxd3+ {[%clk 0:00:18.3]} 23. Kc1 {[%clk 0:01:44.9]} 23... Ne5 {[%clk
0:00:14.7]} 24. Nf4 {[%clk 0:01:45.6]} 24... Bf5 {[%clk 0:00:14.2]} 25. Kd1
{[%clk 0:01:40.5]} 25... g3 {[%clk 0:00:15.1]} 26. Rd2 {[%clk 0:01:38.3]} 26...
Be4 {[%clk 0:00:14.8]} 27. Re1 {[%clk 0:01:37.3]} 27... Bf3+ {[%clk 0:00:12.1]}
28. Kc2 {[%clk 0:01:37.3]} 28... Nf7 {[%clk 0:00:13.2]} 29. Re3 {[%clk 0:01:36]}
29... Ng5 {[%clk 0:00:13.3]} 30. Nh3 {[%clk 0:01:30.2]} 30... g2 {[%clk
0:00:11.2]} 31. Ng1 {[%clk 0:01:30.1]} 31... Be4+ {[%clk 0:00:11.1]} 32. Kb3
{[%clk 0:01:30.9]} 32... Rf8 {[%clk 0:00:10.8]} 33. Rg3 {[%clk 0:01:31.9]} 33...
Rf1 {[%clk 0:00:07.8]} 34. Ne2 {[%clk 0:01:14.5]} 34... Ne6 {[%clk 0:00:08.9]}
35. Rd6 {[%clk 0:01:10]} 35... Nf4 {[%clk 0:00:08.3]} 36. Rd8+ {[%clk
0:01:04.3]} 36... Kg7 {[%clk 0:00:08.9]} 37. Rd7+ {[%clk 0:01:04.9]} 37... Kg8
{[%clk 0:00:10.2]} 38. Rd8+ {[%clk 0:01:05.7]} 38... Kg7 {[%clk 0:00:11.4]} 39.
Rd7+ {[%clk 0:01:04]} 39... Kh6 {[%clk 0:00:12.1]} 40. Nxf4 {[%clk 0:00:37.6]}
40... Rxf4 {[%clk 0:00:12.2]} 41. Rd2 {[%clk 0:00:39.5]} 41... Rf1 {[%clk
0:00:10.4]} 42. Rdxg2 {[%clk 0:00:40.6]} 42... Bxg2 {[%clk 0:00:11]} 43. Rxg2
{[%clk 0:00:42.5]} 43... Kg7 {[%clk 0:00:12.2]} 44. c4 {[%clk 0:00:44.1]} 44...
h5 {[%clk 0:00:13.3]} 45. c5 {[%clk 0:00:45.7]} 45... Kf6 {[%clk 0:00:13.2]} 46.
Kc4 {[%clk 0:00:44.7]} 46... h4 {[%clk 0:00:14.3]} 47. b4 {[%clk 0:00:45.4]}
47... g5 {[%clk 0:00:15.5]} 48. Kd5 {[%clk 0:00:46.5]} 48... Rf4 {[%clk
0:00:13.3]} 49. a3 {[%clk 0:00:45.9]} 49... h3 {[%clk 0:00:14.1]} 50. Rg3 {[%clk
0:00:45.5]} 50... g4 {[%clk 0:00:14]} 51. Re3 {[%clk 0:00:44.7]} 51... h2 {[%clk
0:00:13.7]} 52. Re6+ {[%clk 0:00:46.2]} 52... Kg7 {[%clk 0:00:13.9]} 53. Re1
{[%clk 0:00:48.1]} 53... g3 {[%clk 0:00:14.7]} 54. c6 {[%clk 0:00:48]} 54...
bxc6+ {[%clk 0:00:15.1]} 55. Kxc6 {[%clk 0:00:49.9]} 55... g2 {[%clk 0:00:15.7]}
56. Re7+ {[%clk 0:00:50.1]} 56... Rf7 {[%clk 0:00:16.1]} 57. Re4 {[%clk
0:00:49.7]} 57... h1=Q {[%clk 0:00:16.2]} 58. Rg4+ {[%clk 0:00:50.9]} 58... Kf8
{[%clk 0:00:17.3]} 59. Kb5 {[%clk 0:00:50]} 59... g1=Q {[%clk 0:00:18]} 60. Rxg1
{[%clk 0:00:51.7]} 60... Qxg1 {[%clk 0:00:18.9]} 61. Ka4 {[%clk 0:00:53.6]}
61... Qd1+ {[%clk 0:00:19.4]} 62. Ka5 {[%clk 0:00:55]} 62... Rf5+ {[%clk
0:00:19.5]} 63. b5 {[%clk 0:00:56.3]} 63... Qb3 {[%clk 0:00:20.2]} 64. a4 {[%clk
0:00:57.5]} 64... Qc3+ {[%clk 0:00:21.1]} 65. Ka6 {[%clk 0:00:58.7]} 65... Rf6+
{[%clk 0:00:21.8]} 66. Kxa7 {[%clk 0:01:00.3]} 66... Qc7+ {[%clk 0:00:22.2]} 67.
Ka8 {[%clk 0:01:02.2]} 67... Rb6 {[%clk 0:00:22.8]} 68. a5 {[%clk 0:01:03.1]}
68... Rb8# {[%clk 0:00:23.9]} 0-1